[Event "*** SCC Grand Prix: Titled Tuesday Blitz"]
[Site "Chess.com"]
[Date "2020.10.13"]
[Round "1"]
[White "Sesleria"]
[Black "juancruzarias"]
[Result "0-1"]
[WhiteElo "2035"]
[BlackElo "2511"]
[TimeControl "180+1"]
[EndTime "10:07:48 PDT"]
[Termination "juancruzarias won by resignation"]

1. d4 {[%clk 0:02:57.4]} 1... Nf6 {[%clk 0:02:59.6]} 2. c4 {[%clk 0:02:57.5]}
2... c5 {[%clk 0:02:59.7]} 3. d5 {[%clk 0:02:57.4]} 3... e5 {[%clk 0:03:00.2]}
4. e4 {[%clk 0:02:55.3]} 4... d6 {[%clk 0:03:00.5]} 5. Nc3 {[%clk 0:02:55.3]}
5... Nbd7 {[%clk 0:03:01.2]} 6. f4 {[%clk 0:02:55]} 6... Be7 {[%clk 0:03:01.8]}
7. Nf3 {[%clk 0:02:54.2]} 7... exf4 {[%clk 0:03:00.7]} 8. Bxf4 {[%clk
0:02:53.9]} 8... O-O {[%clk 0:03:01.3]} 9. Bd3 {[%clk 0:02:53]} 9... Ng4 {[%clk
0:02:58.6]} 10. O-O {[%clk 0:02:25.9]} 10... Re8 {[%clk 0:02:57.8]} 11. e5
{[%clk 0:02:19.1]} 11... dxe5 {[%clk 0:02:49.1]} 12. Nxe5 {[%clk 0:02:08.2]}
12... Ndxe5 {[%clk 0:02:37.4]} 13. Bxe5 {[%clk 0:02:07]} 13... Bd6 {[%clk
0:01:40.8]} 14. Bxd6 {[%clk 0:01:53.3]} 14... Qxd6 {[%clk 0:01:41.7]} 15. g3
{[%clk 0:01:48]} 15... Bd7 {[%clk 0:01:26.1]} 16. Ne4 {[%clk 0:01:41.4]} 16...
Qh6 {[%clk 0:01:24.3]} 17. h4 {[%clk 0:01:02.7]} 17... Rxe4 {[%clk 0:01:21.9]}
18. Bxe4 {[%clk 0:00:58.7]} 18... Qe3+ {[%clk 0:01:21.5]} 19. Kg2 {[%clk
0:00:57.9]} 19... Qxe4+ {[%clk 0:01:17.3]} 20. Kg1 {[%clk 0:00:34.7]} 20... Ne3
{[%clk 0:00:52.1]} 21. Qf3 {[%clk 0:00:34]} 21... Qxf3 {[%clk 0:00:50.6]} 22.
Rxf3 {[%clk 0:00:34.2]} 22... Nxc4 {[%clk 0:00:51.1]} 23. Rc1 {[%clk 0:00:33]}
23... Nd6 {[%clk 0:00:46]} 24. Rxc5 {[%clk 0:00:31.8]} 24... Rc8 {[%clk
0:00:44.7]} 25. Rxc8+ {[%clk 0:00:31.2]} 25... Bxc8 {[%clk 0:00:45.2]} 26. Rc3
{[%clk 0:00:29.6]} 26... Kf8 {[%clk 0:00:45.1]} 27. Kg2 {[%clk 0:00:27.4]} 27...
Ke8 {[%clk 0:00:45.6]} 28. Kf3 {[%clk 0:00:27.2]} 28... Kd7 {[%clk 0:00:43.9]}
29. Kf4 {[%clk 0:00:25.3]} 29... b6 {[%clk 0:00:43.6]} 30. Re3 {[%clk
0:00:22.1]} 30... Bb7 {[%clk 0:00:43.6]} 31. Rd3 {[%clk 0:00:18.8]} 31... f6
{[%clk 0:00:43.2]} 32. g4 {[%clk 0:00:17.7]} 32... Nf7 {[%clk 0:00:43.5]} 33. g5
{[%clk 0:00:15.2]} 33... Kd6 {[%clk 0:00:41.6]} 34. gxf6 {[%clk 0:00:15.1]}
34... gxf6 {[%clk 0:00:41.9]} 35. Kf5 {[%clk 0:00:15.3]} 35... Ke7 {[%clk
0:00:37.9]} 36. d6+ {[%clk 0:00:15.5]} 36... Nxd6+ {[%clk 0:00:37.3]} 37. Kg4
{[%clk 0:00:14.3]} 37... Bc8+ {[%clk 0:00:35.6]} 38. Kh5 {[%clk 0:00:14]} 38...
Bf5 {[%clk 0:00:35.4]} 39. Re3+ {[%clk 0:00:13.6]} 39... Kf7 {[%clk 0:00:35.8]}
40. Ra3 {[%clk 0:00:11.7]} 40... a5 {[%clk 0:00:35]} 41. Rc3 {[%clk 0:00:11.6]}
41... Bg6+ {[%clk 0:00:33.2]} 42. Kg4 {[%clk 0:00:10.4]} 42... f5+ {[%clk
0:00:33.7]} 43. Kf3 {[%clk 0:00:09.3]} 43... Ke6 {[%clk 0:00:31.6]} 44. Rc6
{[%clk 0:00:08.9]} 44... b5 {[%clk 0:00:32]} 45. Kf4 {[%clk 0:00:08.5]} 45...
Kd5 {[%clk 0:00:31.8]} 46. Ra6 {[%clk 0:00:08.7]} 46... a4 {[%clk 0:00:31.5]}
47. Kg5 {[%clk 0:00:09]} 47... f4 {[%clk 0:00:30.2]} 48. h5 {[%clk 0:00:09.4]}
48... f3 {[%clk 0:00:27.8]} 49. hxg6 {[%clk 0:00:09.3]} 49... hxg6 {[%clk
0:00:27.5]} 50. Ra8 {[%clk 0:00:08.1]} 50... f2 {[%clk 0:00:27.7]} 51. Rf8
{[%clk 0:00:08]} 51... Nf5 {[%clk 0:00:28]} 52. Rd8+ {[%clk 0:00:08.7]} 52...
Ke4 {[%clk 0:00:28.4]} 53. Rd1 {[%clk 0:00:09.2]} 53... Ne3 {[%clk 0:00:28.8]}
54. Rb1 {[%clk 0:00:09]} 54... f1=Q {[%clk 0:00:29.1]} 55. Rxf1 {[%clk
0:00:09.6]} 55... Nxf1 {[%clk 0:00:30]} 56. Kxg6 {[%clk 0:00:10.4]} 56... Kd3
{[%clk 0:00:30.7]} 57. Kf5 {[%clk 0:00:10.8]} 57... Kc2 {[%clk 0:00:31.3]} 58.
Ke4 {[%clk 0:00:11.7]} 58... Kxb2 {[%clk 0:00:31.6]} 59. Kd4 {[%clk 0:00:12.6]}
59... a3 {[%clk 0:00:31.9]} 60. Kc5 {[%clk 0:00:13.5]} 60... Nd2 {[%clk
0:00:32.1]} 61. Kb4 {[%clk 0:00:14.4]} 61... Nb1 {[%clk 0:00:32.4]} 62. Kxb5
{[%clk 0:00:14.9]} 62... Nc3+ {[%clk 0:00:32.9]} 63. Kc4 {[%clk 0:00:14.8]}
63... Nxa2 {[%clk 0:00:33.8]} 0-1

[Event "*** SCC Grand Prix: Titled Tuesday Blitz"]
[Site "Chess.com"]
[Date "2020.10.13"]
[Round "1"]
[White "pedromartinez91"]
[Black "annacramling"]
[Result "1-0"]
[WhiteElo "2507"]
[BlackElo "1980"]
[TimeControl "180+1"]
[EndTime "10:07:48 PDT"]
[Termination "pedromartinez91 won by resignation"]

1. d4 {[%clk 0:03:00.9]} 1... Nf6 {[%clk 0:02:59.8]} 2. Bf4 {[%clk 0:02:54.5]}
2... d5 {[%clk 0:02:58.4]} 3. e3 {[%clk 0:02:54.6]} 3... c5 {[%clk 0:02:57.7]}
4. c3 {[%clk 0:02:54.3]} 4... Nc6 {[%clk 0:02:57.5]} 5. Nd2 {[%clk 0:02:53.7]}
5... cxd4 {[%clk 0:02:57.1]} 6. exd4 {[%clk 0:02:53.6]} 6... Bf5 {[%clk
0:02:57]} 7. Ngf3 {[%clk 0:02:52.7]} 7... e6 {[%clk 0:02:57.3]} 8. Bb5 {[%clk
0:02:53]} 8... Bd6 {[%clk 0:02:53.9]} 9. Ne5 {[%clk 0:02:51.9]} 9... Qc7 {[%clk
0:02:54.1]} 10. Qa4 {[%clk 0:02:49.8]} 10... O-O {[%clk 0:02:52.6]} 11. Ndf3
{[%clk 0:02:13.9]} 11... Rac8 {[%clk 0:02:45.2]} 12. Bg3 {[%clk 0:02:09.1]}
12... Be4 {[%clk 0:02:38]} 13. O-O {[%clk 0:01:52.2]} 13... Ne7 {[%clk
0:02:18.7]} 14. Be2 {[%clk 0:01:35.1]} 14... a6 {[%clk 0:02:13.7]} 15. Qd1
{[%clk 0:01:26.6]} 15... Ng6 {[%clk 0:02:03.1]} 16. Re1 {[%clk 0:01:24.7]} 16...
Nh5 {[%clk 0:01:58.8]} 17. Nxg6 {[%clk 0:01:18.9]} 17... Bxg6 {[%clk 0:01:56.2]}
18. Bxd6 {[%clk 0:01:10.8]} 18... Qxd6 {[%clk 0:01:56]} 19. Ne5 {[%clk
0:01:11.4]} 19... Nf4 {[%clk 0:01:46.5]} 20. Bf1 {[%clk 0:01:11.2]} 20... f6
{[%clk 0:01:45.3]} 21. Nxg6 {[%clk 0:01:06.2]} 21... Nxg6 {[%clk 0:01:45.3]} 22.
Qg4 {[%clk 0:00:57.6]} 22... e5 {[%clk 0:01:44.8]} 23. dxe5 {[%clk 0:00:57.4]}
23... fxe5 {[%clk 0:01:44.8]} 24. Rad1 {[%clk 0:00:57.1]} 24... Qc5 {[%clk
0:01:20.8]} 25. Qe2 {[%clk 0:00:46]} 25... e4 {[%clk 0:01:08.3]} 26. Qe3 {[%clk
0:00:39]} 26... Qc6 {[%clk 0:01:04.9]} 27. c4 {[%clk 0:00:35.5]} 27... dxc4
{[%clk 0:00:54.1]} 28. Qxe4 {[%clk 0:00:35.7]} 28... Qxe4 {[%clk 0:00:53.8]} 29.
Rxe4 {[%clk 0:00:36.6]} 29... c3 {[%clk 0:00:51.1]} 30. bxc3 {[%clk 0:00:33.5]}
30... Rxc3 {[%clk 0:00:52]} 31. Bc4+ {[%clk 0:00:32.3]} 31... Kh8 {[%clk
0:00:50.9]} 32. Bb3 {[%clk 0:00:32.6]} 32... Rfc8 {[%clk 0:00:42]} 33. g3 {[%clk
0:00:31.9]} 33... h6 {[%clk 0:00:40.2]} 34. Rd7 {[%clk 0:00:31.2]} 34... R3c7
{[%clk 0:00:27.7]} 35. Rxc7 {[%clk 0:00:27.9]} 35... Rxc7 {[%clk 0:00:28.1]} 36.
Re8+ {[%clk 0:00:28.5]} 36... Kh7 {[%clk 0:00:28.4]} 37. Bg8+ {[%clk 0:00:28.9]}
37... Kh8 {[%clk 0:00:27.8]} 38. Bd5+ {[%clk 0:00:27.7]} 38... Kh7 {[%clk
0:00:26.8]} 39. Be4 {[%clk 0:00:28.1]} 39... Rf7 {[%clk 0:00:08.8]} 40. h4
{[%clk 0:00:27.4]} 40... h5 {[%clk 0:00:08.2]} 41. Re6 {[%clk 0:00:20.8]} 41...
Rf6 {[%clk 0:00:08.3]} 42. Rxf6 {[%clk 0:00:21.2]} 42... gxf6 {[%clk 0:00:08.3]}
43. Bxb7 {[%clk 0:00:21.9]} 43... a5 {[%clk 0:00:07.4]} 44. Be4 {[%clk
0:00:22.4]} 44... Kg7 {[%clk 0:00:06.1]} 45. Bxg6 {[%clk 0:00:22.9]} 45... Kxg6
{[%clk 0:00:06.7]} 46. Kg2 {[%clk 0:00:23.8]} 46... Kf5 {[%clk 0:00:07]} 47. Kf3
{[%clk 0:00:24.7]} 47... Ke5 {[%clk 0:00:07.2]} 48. Ke3 {[%clk 0:00:25.3]} 48...
Kd5 {[%clk 0:00:07.6]} 49. f3 {[%clk 0:00:25.1]} 49... Kc4 {[%clk 0:00:06.3]}
50. g4 {[%clk 0:00:25.2]} 50... hxg4 {[%clk 0:00:04]} 51. fxg4 {[%clk
0:00:26.1]} 51... Kc3 {[%clk 0:00:04.8]} 52. h5 {[%clk 0:00:26.6]} 52... Kb2
{[%clk 0:00:05.7]} 53. h6 {[%clk 0:00:27.1]} 53... Kxa2 {[%clk 0:00:06.6]} 54.
h7 {[%clk 0:00:27.7]} 54... a4 {[%clk 0:00:07.5]} 55. h8=Q {[%clk 0:00:27.8]}
55... a3 {[%clk 0:00:08.4]} 56. Qxf6 {[%clk 0:00:28.1]} 56... Kb3 {[%clk
0:00:08.3]} 57. Qa6 {[%clk 0:00:28.6]} 57... a2 {[%clk 0:00:08.5]} 58. g5 {[%clk
0:00:29.2]} 58... Kb2 {[%clk 0:00:08.2]} 59. Qxa2+ {[%clk 0:00:29.1]} 59... Kxa2
{[%clk 0:00:08.3]} 60. g6 {[%clk 0:00:30]} 1-0

[Event "*** SCC Grand Prix: Titled Tuesday Blitz"]
[Site "Chess.com"]
[Date "2020.10.13"]
[Round "1"]
[White "PowerThinking2650"]
[Black "Matveev_Vladimir"]
[Result "1-0"]
[WhiteElo "2379"]
[BlackElo "2690"]
[TimeControl "180+1"]
[EndTime "10:07:51 PDT"]
[Termination "PowerThinking2650 won by resignation"]

1. e4 {[%clk 0:02:59.3]} 1... c5 {[%clk 0:02:59.8]} 2. Nf3 {[%clk 0:02:58.4]}
2... d6 {[%clk 0:03:00.2]} 3. d4 {[%clk 0:02:58.2]} 3... cxd4 {[%clk 0:03:01.1]}
4. Nxd4 {[%clk 0:02:58.8]} 4... Nf6 {[%clk 0:03:01.8]} 5. Nc3 {[%clk 0:02:59.4]}
5... a6 {[%clk 0:03:02.3]} 6. Bc4 {[%clk 0:03:00]} 6... e6 {[%clk 0:02:58.7]} 7.
O-O {[%clk 0:02:59]} 7... Be7 {[%clk 0:02:59.2]} 8. Bb3 {[%clk 0:02:54.8]} 8...
O-O {[%clk 0:02:57.2]} 9. f4 {[%clk 0:02:54.7]} 9... Nc6 {[%clk 0:02:56.1]} 10.
Be3 {[%clk 0:02:48.1]} 10... Bd7 {[%clk 0:02:46]} 11. f5 {[%clk 0:02:44]} 11...
Nxd4 {[%clk 0:02:43.8]} 12. Bxd4 {[%clk 0:02:44.9]} 12... Bc6 {[%clk 0:02:43.6]}
13. fxe6 {[%clk 0:02:41.2]} 13... fxe6 {[%clk 0:02:38.7]} 14. Bxe6+ {[%clk
0:02:42.1]} 14... Kh8 {[%clk 0:02:39.4]} 15. Qd3 {[%clk 0:02:39.9]} 15... b5
{[%clk 0:02:31.3]} 16. a3 {[%clk 0:02:39.4]} 16... Nd7 {[%clk 0:02:20.3]} 17.
Nd5 {[%clk 0:02:33.9]} 17... Ne5 {[%clk 0:02:09.8]} 18. Bxe5 {[%clk 0:02:29.6]}
18... dxe5 {[%clk 0:02:10.7]} 19. Nxe7 {[%clk 0:02:06.5]} 19... Qxe7 {[%clk
0:02:11.6]} 20. Bd5 {[%clk 0:02:05.2]} 20... Qc5+ {[%clk 0:01:56]} 21. Kh1
{[%clk 0:02:04.4]} 21... Rad8 {[%clk 0:01:49.5]} 22. Rxf8+ {[%clk 0:02:00.5]}
22... Rxf8 {[%clk 0:01:50.4]} 23. Rf1 {[%clk 0:01:57.7]} 23... Rxf1+ {[%clk
0:01:43.3]} 24. Qxf1 {[%clk 0:01:56.5]} 24... Bxd5 {[%clk 0:01:43.7]} 25. exd5
{[%clk 0:01:53.8]} 25... h6 {[%clk 0:01:44.1]} 26. Qd3 {[%clk 0:01:43.6]} 26...
Qf2 {[%clk 0:01:38]} 27. h3 {[%clk 0:01:38.3]} 27... Qe1+ {[%clk 0:01:38]} 28.
Kh2 {[%clk 0:01:38.3]} 28... e4 {[%clk 0:01:38.9]} 29. Qd4 {[%clk 0:01:18.9]}
29... e3 {[%clk 0:01:36.8]} 30. d6 {[%clk 0:01:19]} 30... Qd2 {[%clk 0:01:36.7]}
31. Qf4 {[%clk 0:01:09.2]} 31... Qd5 {[%clk 0:01:22]} 32. Qxe3 {[%clk
0:00:52.3]} 32... Qxd6+ {[%clk 0:01:21.7]} 33. Qg3 {[%clk 0:00:52.3]} 33... Qd2
{[%clk 0:01:15.8]} 34. Qd3 {[%clk 0:00:44.1]} 34... Qf4+ {[%clk 0:01:13.9]} 35.
Qg3 {[%clk 0:00:37]} 35... Qd2 {[%clk 0:01:13.5]} 36. Qc7 {[%clk 0:00:34.1]}
36... Kh7 {[%clk 0:01:00.7]} 37. b3 {[%clk 0:00:31.9]} 37... Qc1 {[%clk
0:00:50.6]} 38. a4 {[%clk 0:00:28.1]} 38... bxa4 {[%clk 0:00:50.5]} 39. bxa4
{[%clk 0:00:28.9]} 39... Qa3 {[%clk 0:00:39.8]} 40. a5 {[%clk 0:00:28.1]} 40...
Qe3 {[%clk 0:00:27.8]} 41. c4 {[%clk 0:00:27.5]} 41... Qe4 {[%clk 0:00:27.5]}
42. c5 {[%clk 0:00:25.7]} 42... Qd5 {[%clk 0:00:26.9]} 43. Qd6 {[%clk
0:00:24.8]} 43... Qa2 {[%clk 0:00:24.3]} 44. c6 {[%clk 0:00:22.7]} 44... Qxa5
{[%clk 0:00:24.3]} 45. c7 {[%clk 0:00:23]} 45... Qc3 {[%clk 0:00:24.5]} 46. Qg3
{[%clk 0:00:19.2]} 46... Qc4 {[%clk 0:00:21]} 47. Qe5 {[%clk 0:00:16.7]} 47...
Qc2 {[%clk 0:00:15.9]} 48. h4 {[%clk 0:00:13.9]} 48... a5 {[%clk 0:00:13.6]} 49.
Qxa5 {[%clk 0:00:12.3]} 49... Qe4 {[%clk 0:00:12.5]} 50. Qc3 {[%clk 0:00:10.2]}
50... Qf4+ {[%clk 0:00:12.2]} 51. Kg1 {[%clk 0:00:09.9]} 1-0

[Event "*** SCC Grand Prix: Titled Tuesday Blitz"]
[Site "Chess.com"]
[Date "2020.10.13"]
[Round "1"]
[White "djano"]
[Black "GOGIEFF"]
[Result "0-1"]
[WhiteElo "2454"]
[BlackElo "2871"]
[TimeControl "180+1"]
[EndTime "10:07:53 PDT"]
[Termination "GOGIEFF won on time"]

1. d4 {[%clk 0:03:00.9]} 1... Nf6 {[%clk 0:02:59.4]} 2. Bf4 {[%clk 0:02:59.7]}
2... e6 {[%clk 0:02:57.2]} 3. Nf3 {[%clk 0:02:59]} 3... b6 {[%clk 0:02:53.1]} 4.
e3 {[%clk 0:02:57.3]} 4... Bb7 {[%clk 0:02:53.2]} 5. Nbd2 {[%clk 0:02:57.1]}
5... Be7 {[%clk 0:02:53.1]} 6. h3 {[%clk 0:02:56]} 6... O-O {[%clk 0:02:51.5]}
7. Bd3 {[%clk 0:02:56]} 7... c5 {[%clk 0:02:51.5]} 8. O-O {[%clk 0:02:54.5]}
8... Nc6 {[%clk 0:02:51.6]} 9. c3 {[%clk 0:02:54]} 9... d5 {[%clk 0:02:49.4]}
10. Ne5 {[%clk 0:02:45.8]} 10... Nxe5 {[%clk 0:02:41.2]} 11. Bxe5 {[%clk
0:02:46.3]} 11... c4 {[%clk 0:02:36.8]} 12. Bc2 {[%clk 0:02:42.5]} 12... b5
{[%clk 0:02:35.9]} 13. f4 {[%clk 0:02:11.8]} 13... a5 {[%clk 0:02:30]} 14. f5
{[%clk 0:02:10.5]} 14... exf5 {[%clk 0:02:27.4]} 15. Rxf5 {[%clk 0:02:10.3]}
15... b4 {[%clk 0:02:27.3]} 16. Qf3 {[%clk 0:01:57.4]} 16... Qb6 {[%clk
0:02:18.2]} 17. Rf1 {[%clk 0:01:48.8]} 17... bxc3 {[%clk 0:02:18]} 18. bxc3
{[%clk 0:01:47.2]} 18... Qb2 {[%clk 0:02:14.6]} 19. Rxf6 {[%clk 0:01:15.5]}
19... Qxc2 {[%clk 0:01:49]} 20. Rxf7 {[%clk 0:01:08.8]} 20... Qg6 {[%clk
0:01:46.4]} 21. Rxe7 {[%clk 0:00:34.3]} 21... Rxf3 {[%clk 0:01:43.3]} 22. Rxf3
{[%clk 0:00:32.7]} 22... Re8 {[%clk 0:01:18.4]} 23. Rxg7+ {[%clk 0:00:23.1]}
23... Qxg7 {[%clk 0:01:17.6]} 24. Bxg7 {[%clk 0:00:22.8]} 24... Kxg7 {[%clk
0:01:18.5]} 25. Rg3+ {[%clk 0:00:21.2]} 25... Kf6 {[%clk 0:01:18]} 26. Kh1
{[%clk 0:00:22.1]} 26... Bc8 {[%clk 0:01:17.6]} 27. Rf3+ {[%clk 0:00:21.6]}
27... Kg6 {[%clk 0:01:17.9]} 28. Rg3+ {[%clk 0:00:21]} 28... Kf6 {[%clk
0:01:18.1]} 29. Rf3+ {[%clk 0:00:21.3]} 29... Ke6 {[%clk 0:01:18.6]} 30. Kg1
{[%clk 0:00:20.7]} 30... Bd7 {[%clk 0:01:18.6]} 31. Rf2 {[%clk 0:00:20.9]} 31...
Rb8 {[%clk 0:01:18.3]} 32. Nf3 {[%clk 0:00:21.3]} 32... Rb1+ {[%clk 0:01:18.8]}
33. Kh2 {[%clk 0:00:21.6]} 33... a4 {[%clk 0:01:18.1]} 34. Ng5+ {[%clk
0:00:21.8]} 34... Kd6 {[%clk 0:01:17.8]} 35. Nxh7 {[%clk 0:00:21.3]} 35... a3
{[%clk 0:01:18.4]} 36. Nf6 {[%clk 0:00:20.3]} 36... Rb2 {[%clk 0:01:17.8]} 37.
Kg3 {[%clk 0:00:20.7]} 37... Ba4 {[%clk 0:01:18.3]} 38. h4 {[%clk 0:00:19.7]}
38... Bb3 {[%clk 0:01:18.7]} 39. Rf5 {[%clk 0:00:18.8]} 39... Bxa2 {[%clk
0:01:16.1]} 40. Rxd5+ {[%clk 0:00:17.2]} 40... Ke6 {[%clk 0:01:16.5]} 41. Ra5
{[%clk 0:00:17.5]} 41... Kxf6 {[%clk 0:01:16.8]} 42. Rxa3 {[%clk 0:00:17.7]}
42... Bb1 {[%clk 0:01:17.5]} 43. h5 {[%clk 0:00:13.7]} 43... Re2 {[%clk
0:01:10.6]} 44. Kf3 {[%clk 0:00:13]} 44... Re1 {[%clk 0:01:11]} 45. Ra6+ {[%clk
0:00:12.5]} 45... Kg5 {[%clk 0:01:11.1]} 46. Ra5+ {[%clk 0:00:13.1]} 46... Kh6
{[%clk 0:01:09.6]} 47. g4 {[%clk 0:00:13.4]} 47... Rf1+ {[%clk 0:01:10]} 48. Kg3
{[%clk 0:00:13.5]} 48... Be4 {[%clk 0:01:09.8]} 49. Ra6+ {[%clk 0:00:13.2]}
49... Kg7 {[%clk 0:01:08]} 50. Ra7+ {[%clk 0:00:12.6]} 50... Kf6 {[%clk
0:01:06]} 51. Ra6+ {[%clk 0:00:12.1]} 51... Ke7 {[%clk 0:01:06.3]} 52. g5 {[%clk
0:00:11.8]} 52... Rf3+ {[%clk 0:01:03.8]} 53. Kg4 {[%clk 0:00:12.2]} 53... Rxe3
{[%clk 0:01:04.3]} 54. g6 {[%clk 0:00:12.6]} 54... Rxc3 {[%clk 0:01:03.5]} 55.
g7 {[%clk 0:00:10.5]} 55... Bh7 {[%clk 0:01:03.1]} 56. Ra7+ {[%clk 0:00:09.4]}
56... Kf6 {[%clk 0:01:01.6]} 57. h6 {[%clk 0:00:09.9]} 57... Rc1 {[%clk
0:01:01.6]} 58. Ra6+ {[%clk 0:00:10.1]} 58... Kf7 {[%clk 0:01:00.6]} 59. Ra7+
{[%clk 0:00:09.8]} 59... Ke6 {[%clk 0:01:00.5]} 60. Ra6+ {[%clk 0:00:09.9]}
60... Kd5 {[%clk 0:01:00.4]} 61. Ra8 {[%clk 0:00:09]} 61... Rg1+ {[%clk
0:00:59.5]} 62. Kf4 {[%clk 0:00:08.7]} 62... c3 {[%clk 0:01:00]} 63. Rh8 {[%clk
0:00:07.9]} 63... c2 {[%clk 0:01:00.3]} 64. Rd8+ {[%clk 0:00:07.2]} 64... Kc4
{[%clk 0:00:59.9]} 65. Rc8+ {[%clk 0:00:07.5]} 65... Kxd4 {[%clk 0:00:59.8]} 66.
g8=Q {[%clk 0:00:03]} 66... Rxg8 {[%clk 0:00:58.5]} 67. Rc7 {[%clk 0:00:01.4]}
67... Rg1 {[%clk 0:00:57.5]} 0-1

[Event "*** SCC Grand Prix: Titled Tuesday Blitz"]
[Site "Chess.com"]
[Date "2020.10.13"]
[Round "1"]
[White "Supernotar"]
[Black "yourstrulyme"]
[Result "1-0"]
[WhiteElo "2832"]
[BlackElo "2436"]
[TimeControl "180+1"]
[EndTime "10:07:55 PDT"]
[Termination "Supernotar won by resignation"]

1. d4 {[%clk 0:03:00.9]} 1... b6 {[%clk 0:02:58.9]} 2. c4 {[%clk 0:02:58.2]}
2... Bb7 {[%clk 0:02:59.4]} 3. Nf3 {[%clk 0:02:58.5]} 3... e6 {[%clk 0:02:59.1]}
4. g3 {[%clk 0:02:58.3]} 4... f5 {[%clk 0:02:58.6]} 5. Bg2 {[%clk 0:02:58.3]}
5... Nf6 {[%clk 0:02:58.8]} 6. O-O {[%clk 0:02:58.4]} 6... Be7 {[%clk
0:02:57.5]} 7. Nc3 {[%clk 0:02:58.6]} 7... O-O {[%clk 0:02:56.8]} 8. d5 {[%clk
0:02:58.9]} 8... Na6 {[%clk 0:02:52.3]} 9. Nd4 {[%clk 0:02:58.6]} 9... Qc8
{[%clk 0:02:40.4]} 10. dxe6 {[%clk 0:02:55.6]} 10... Bxg2 {[%clk 0:02:35.2]} 11.
Kxg2 {[%clk 0:02:50.4]} 11... dxe6 {[%clk 0:02:33.5]} 12. Qc2 {[%clk 0:02:24.3]}
12... Nb4 {[%clk 0:02:12.7]} 13. Qb3 {[%clk 0:02:21.8]} 13... c5 {[%clk
0:02:11.8]} 14. Nc2 {[%clk 0:02:18.5]} 14... Nc6 {[%clk 0:02:09.8]} 15. Na3
{[%clk 0:02:01.2]} 15... Nd4 {[%clk 0:02:04.6]} 16. Qa4 {[%clk 0:02:00.2]} 16...
a6 {[%clk 0:01:57]} 17. e3 {[%clk 0:01:53.3]} 17... b5 {[%clk 0:01:43.4]} 18.
Qd1 {[%clk 0:01:52]} 18... b4 {[%clk 0:00:50.7]} 19. exd4 {[%clk 0:01:51]} 19...
bxa3 {[%clk 0:00:51]} 20. d5 {[%clk 0:01:49.3]} 20... Rd8 {[%clk 0:00:44.9]} 21.
Qe2 {[%clk 0:01:42.4]} 21... Ra7 {[%clk 0:00:34.6]} 22. dxe6 {[%clk 0:01:30.5]}
22... Rd6 {[%clk 0:00:21.6]} 23. Re1 {[%clk 0:01:27.8]} 23... Rb7 {[%clk
0:00:11.8]} 24. bxa3 {[%clk 0:01:21.8]} 24... Rbb6 {[%clk 0:00:12.1]} 25. Bf4
{[%clk 0:01:11.7]} 25... Rxe6 {[%clk 0:00:12.1]} 26. Qf3 {[%clk 0:01:11.8]}
26... g6 {[%clk 0:00:09.8]} 27. Nd5 {[%clk 0:01:08.9]} 27... Nxd5 {[%clk
0:00:08.6]} 28. Qxd5 {[%clk 0:01:08]} 28... Bf6 {[%clk 0:00:04.7]} 29. Rxe6
{[%clk 0:00:53.8]} 29... Qxe6 {[%clk 0:00:03.9]} 30. Rd1 {[%clk 0:00:46.2]}
30... Qxd5+ {[%clk 0:00:04]} 31. Rxd5 {[%clk 0:00:46.8]} 31... Kf7 {[%clk
0:00:03.6]} 32. Rxc5 {[%clk 0:00:45.3]} 32... Rb2 {[%clk 0:00:03.7]} 33. Rc7+
{[%clk 0:00:44.6]} 33... Ke6 {[%clk 0:00:03.6]} 34. Be3 {[%clk 0:00:44.7]} 34...
Rxa2 {[%clk 0:00:03.4]} 35. Rc6+ {[%clk 0:00:42.2]} 35... Kf7 {[%clk 0:00:02.9]}
36. Rxa6 {[%clk 0:00:43.1]} 36... h5 {[%clk 0:00:02.9]} 37. h4 {[%clk
0:00:42.8]} 37... Be7 {[%clk 0:00:03]} 38. c5 {[%clk 0:00:40.2]} 38... Rc2
{[%clk 0:00:03.3]} 39. c6 {[%clk 0:00:37.9]} 39... Ke6 {[%clk 0:00:03.9]} 40.
c7+ {[%clk 0:00:31.9]} 40... Kf7 {[%clk 0:00:02.9]} 41. Ra7 {[%clk 0:00:28.2]}
41... Ke6 {[%clk 0:00:02.5]} 42. Bb6 {[%clk 0:00:25.6]} 42... Bd6 {[%clk
0:00:02.6]} 43. Ra8 {[%clk 0:00:21.9]} 43... Bxc7 {[%clk 0:00:02.9]} 44. Rc8
{[%clk 0:00:22.3]} 44... Kd7 {[%clk 0:00:02.7]} 45. Rxc7+ {[%clk 0:00:22.5]}
45... Rxc7 {[%clk 0:00:02.9]} 46. Bxc7 {[%clk 0:00:23]} 46... Kxc7 {[%clk
0:00:03.8]} 47. Kf3 {[%clk 0:00:23.7]} 47... Kb6 {[%clk 0:00:04.3]} 48. Kf4
{[%clk 0:00:24.3]} 48... Kb5 {[%clk 0:00:04.8]} 49. Kg5 {[%clk 0:00:24.9]} 49...
Ka4 {[%clk 0:00:05.4]} 50. Kxg6 {[%clk 0:00:25.3]} 50... f4 {[%clk 0:00:06.3]}
51. gxf4 {[%clk 0:00:25.4]} 51... Kxa3 {[%clk 0:00:06.8]} 52. Kxh5 {[%clk
0:00:25.7]} 52... Kb4 {[%clk 0:00:07.1]} 53. f5 {[%clk 0:00:26.3]} 53... Kc5
{[%clk 0:00:08]} 54. Kg6 {[%clk 0:00:26.9]} 54... Kd6 {[%clk 0:00:08.9]} 55. f6
{[%clk 0:00:27.3]} 1-0